bitfinex-derivatives/quotes_BTCF0:USTF0_20250429
["timestamp","ask_amount","ask_price","bid_price","bid_amount"]
[1745964479586,0.48601584,94512.0,94493.0,0.1852]
[1745964479785,0.6381,94511.0,94494.0,0.1896]
[1745964480091,0.211567,94510.0,94500.0,0.22]
[1745964480294,0.2115698,94508.0,94500.0,0.22]
[1745964480482,0.1864,94507.0,94500.0,0.22]
[1745964480682,0.49632103,94507.0,94500.0,0.22]
[1745964480890,0.10581338,94506.0,94500.0,0.22]
[1745964481195,0.22433441,94506.0,94500.0,0.22]
[1745964481393,0.3928,94505.0,94500.0,0.22]
[1745964481594,0.3928,94505.0,94501.0,0.1837]
[1745964481789,0.11937457,94504.0,94501.0,0.1837]
[1745964481986,0.22519075,94504.0,94501.0,0.1837]
[1745964482292,0.3928,94503.0,94501.0,0.3037]
[1745964482684,0.11482517,94502.0,94501.0,0.3037]
[1745964482885,0.10581674,94502.0,94501.0,0.3037]
[1745964483090,0.30101674,94502.0,94501.0,1.33111636]
[1745964483995,0.30201674,94502.0,94501.0,1.33111636]
[1745964484494,0.68532188,94502.0,94501.0,0.12]
[1745964484685,0.79912282,94502.0,94501.0,0.12]
[1745964484885,0.80012282,94502.0,94501.0,0.12]
[1745964485207,1.02170562,94502.0,94501.0,0.12]
[1745964485388,1.08758562,94502.0,94501.0,0.12]
[1745964486489,1.23182282,94502.0,94475.0,0.00105848]
[1745964486689,0.3608,94478.0,94475.0,0.00105848]
[1745964486994,0.5668613,94477.0,94464.0,0.1918]
[1745964487197,0.5668613,94477.0,94475.0,0.12]
[1745964487399,0.84270772,94477.0,94475.0,0.12]
[1745964487791,0.67270772,94477.0,94475.0,0.12]
[1745964488087,0.68081107,94477.0,94475.0,0.12]
[1745964488596,0.69381107,94477.0,94475.0,0.12]
[1745964489186,0.211641,94476.0,94475.0,0.12]
[1745964489384,0.361641,94476.0,94475.0,0.12]
[1745964489597,0.86361953,94476.0,94475.0,0.12]
[1745964489795,0.96946651,94476.0,94475.0,0.12]
[1745964490497,0.98446651,94476.0,94475.0,0.12]
[1745964490890,0.98546651,94476.0,94475.0,0.12]
[1745964491999,0.97046651,94476.0,94475.0,0.12]
[1745964492198,0.97146651,94476.0,94475.0,0.12]
[1745964493698,1.07731452,94476.0,94475.0,0.12]
[1745964494102,1.11567352,94476.0,94455.0,0.3608]
[1745964494407,0.4137219,94456.0,94441.0,0.1976]
[1745964494597,0.79372484,94455.0,94445.0,1.02741636]
[1745964494798,1.08106013,94455.0,94445.0,1.02741636]
[1745964494995,0.10584754,94454.0,94441.0,0.1976]
[1745964495204,0.27584754,94454.0,94445.0,0.12]
[1745964495399,0.50823529,94453.0,94445.0,0.12]
[1745964496000,0.10587612,94452.0,94445.0,0.12]
[1745964496408,0.51043334,94451.0,94445.0,0.12]
[1745964497004,0.10587724,94450.0,94445.0,0.12]
[1745964497206,0.12836436,94450.0,94445.0,0.12]
[1745964497405,0.69658035,94449.0,94445.0,0.12]
[1745964497603,0.48487835,94449.0,94445.0,0.12]
[1745964498001,0.10587836,94448.0,94445.0,0.12]
[1745964498403,0.03548712,94450.0,94447.0,1.02741636]
[1745964498604,0.02248712,94450.0,94449.0,1.02741636]
[1745964498908,0.014,94451.0,94449.0,1.02741636]
[1745964499109,0.1975,94451.0,94450.0,1.02741636]
[1745964499511,0.2965173,94451.0,94450.0,1.41181636]
[1745964500110,0.3608,94452.0,94450.0,1.53181636]
[1745964500409,0.3608,94452.0,94451.0,1.02741636]
[1745964500612,0.3608,94452.0,94451.0,1.20801636]
[1745964500811,0.3608,94452.0,94451.0,1.60061636]
[1745964501006,0.06592,94457.0,94451.0,0.5732]
[1745964501200,0.06592,94457.0,94451.0,0.6932]
[1745964501401,0.06592,94457.0,94456.0,1.02741636]
[1745964502107,0.06592,94457.0,94456.0,1.14741636]
[1745964502506,0.002,94457.0,94456.0,1.71497016]
[1745964502714,0.06592,94470.0,94456.0,1.50328436]
[1745964502901,0.06592,94470.0,94460.0,0.2116754]
[1745964503210,0.06592,94470.0,94469.0,1.02741636]
[1745964504104,0.06592,94470.0,94469.0,1.14741636]
[1745964504510,0.08854277,94470.0,94469.0,1.14741636]
[1745964504806,0.09054277,94470.0,94469.0,1.14741636]
[1745964505007,0.09154277,94470.0,94469.0,1.14741636]
[1745964505209,0.06892,94470.0,94469.0,1.14741636]
[1745964505397,0.18009589,94470.0,94469.0,1.14741636]
[1745964505598,0.20255326,94470.0,94469.0,1.14741636]
[1745964508417,0.20255326,94470.0,94469.0,0.12]
[1745964509610,0.30840753,94470.0,94469.0,0.12]
[1745964510016,0.0529154,94467.0,94413.0,0.0529455]
[1745964510204,0.12521584,94447.0,94438.0,1.41741636]
[1745964510411,0.1966,94466.0,94445.0,0.3608]
[1745964510412,0.06592,94446.0,94445.0,0.3608]
[1745964510620,0.48601584,94460.0,94447.0,1.02741636]
[1745964510819,0.22491222,94449.0,94448.0,0.3879]
[1745964511118,0.3608,94450.0,94448.0,0.3879]
[1745964511319,0.22493015,94449.0,94448.0,0.3879]
[1745964511508,0.11905795,94449.0,94448.0,0.3879]
[1745964511909,0.1068722,94449.0,94448.0,0.3889]
[1745964512105,0.2262639,94449.0,94448.0,0.5089]
[1745964512517,0.2272639,94449.0,94448.0,0.5099]
[1745964513216,0.4147639,94449.0,94448.0,0.5099]
[1745964514117,0.4147639,94449.0,94448.0,0.01785133]
[1745964514118,1.1623414,94449.0,94448.0,0.01785133]
[1745964514324,1.3443414,94449.0,94448.0,0.01785133]
[1745964514519,1.0943414,94449.0,94448.0,0.01785133]
[1745964515518,1.0933414,94449.0,94448.0,0.01685133]
[1745964515720,1.0943414,94449.0,94448.0,0.01685133]
[1745964520810,1.4551414,94449.0,94448.0,0.01685133]
[1745964521518,1.4551414,94449.0,94405.0,0.4114]
[1745964521519,0.1756,94442.0,94405.0,0.4114]
[1745964521719,0.3608,94419.0,94415.0,1.00004774]
[1745964522024,0.3608,94419.0,94416.0,1.37744774]
[1745964522025,0.37600976,94418.0,94416.0,1.37744774]
[1745964522214,0.48188756,94418.0,94416.0,1.37744774]
[1745964522410,0.48188756,94418.0,94415.0,0.12]
[1745964522616,0.2117755,94416.0,94415.0,0.12]
[1745964522824,0.3717755,94416.0,94415.0,0.12]
[1745964523023,0.67860891,94416.0,94415.0,0.12]
[1745964523222,0.5868123,94416.0,94415.0,0.12]
[1745964524130,0.5878123,94416.0,94415.0,0.121]
[1745964524324,0.6542123,94416.0,94415.0,0.121]
[1745964524524,0.5888123,94416.0,94415.0,0.121]
[1745964524919,0.6552123,94416.0,94415.0,0.121]
[1745964525821,0.0529447,94415.0,94401.0,1.00004774]
[1745964526025,0.211804,94404.0,94400.0,0.00802214]
[1745964526220,0.01,94404.0,94401.0,0.3937]
[1745964526416,0.41708344,94403.0,94401.0,0.3937]
[1745964526616,0.59838344,94403.0,94401.0,0.3937]
[1745964527015,0.59838344,94403.0,94393.0,0.1955]
[1745964527016,0.105928,94402.0,94381.0,0.05060203]
[1745964527217,0.3608,94385.0,94381.0,0.05060203]
[1745964527414,0.3608,94383.0,94382.0,0.381]
[1745964527728,0.54832849,94383.0,94382.0,0.381]
[1745964528029,0.90673284,94383.0,94375.0,0.16128847]
[1745964528216,0.3737,94382.0,94375.0,0.16128847]
[1745964528419,0.45014,94382.0,94375.0,0.16128847]
[1745964528613,0.0529645,94380.0,94375.0,0.16128847]
[1745964528917,0.2118832,94368.0,94367.0,0.16027369]
[1745964529113,0.8126832,94368.0,94367.0,0.07116572]
[1745964529326,0.83621361,94368.0,94367.0,0.07116572]
[1745964529627,1.22050481,94368.0,94367.0,0.07116572]
[1745964530015,1.22050481,94368.0,94360.0,0.29]
[1745964530016,0.0529713,94367.0,94360.0,0.21406545]
[1745964530216,0.0529794,94353.0,94332.0,0.3608]
[1745964530429,0.12521584,94342.0,94337.0,1.00004774]
[1745964530615,0.3608,94346.0,94338.0,0.3662]
[1745964530817,0.11147539,94341.0,94338.0,0.3662]
[1745964531021,0.11147539,94348.0,94342.0,1.00004774]
[1745964531223,0.11147539,94348.0,94338.0,0.3662]
[1745964531224,0.21744407,94345.0,94340.0,0.572746]
[1745964531414,0.0140213,94362.0,94344.0,1.00004774]
[1745964531614,0.00888588,94368.0,94367.0,1.00004774]
[1745964531817,0.3608,94391.0,94369.0,1.00004774]
[1745964532019,0.3608,94391.0,94387.0,1.00004774]
[1745964532221,0.3608,94391.0,94376.0,0.3608]
[1745964532222,0.11913192,94390.0,94388.0,0.3652]
[1745964532416,0.22508657,94390.0,94388.0,0.3637]
[1745964532620,0.11,94390.0,94389.0,1.00004774]
[1745964533126,0.3608,94391.0,94389.0,1.18434774]
[1745964533325,0.12725796,94390.0,94389.0,0.3043]
[1745964533715,0.12125796,94390.0,94389.0,1.30434774]
[1745964533926,0.12525796,94390.0,94389.0,1.30434774]
[1745964534424,0.97041974,94390.0,94389.0,0.02097152]
[1745964534626,0.99137574,94390.0,94389.0,0.02097152]
[1745964534924,0.77954194,94390.0,94389.0,0.02097152]
[1745964535124,0.99137574,94390.0,94389.0,0.02097152]
[1745964535915,0.99310028,94390.0,94389.0,0.02097152]
[1745964536819,0.91610028,94390.0,94389.0,0.02097152]
[1745964537220,0.51946648,94390.0,94389.0,0.02097152]
[1745964537430,0.45302648,94390.0,94389.0,0.02097152]
[1745964538226,0.44502648,94390.0,94389.0,0.02097152]
[1745964538428,0.45202648,94390.0,94389.0,0.02097152]
[1745964538624,0.62762648,94390.0,94389.0,0.02097152]
[1745964538930,0.45202648,94390.0,94389.0,0.02097152]
[1745964539632,0.93750428,94390.0,94389.0,0.01808529]
[1745964540436,1.00394428,94390.0,94389.0,0.01808529]
[1745964542638,0.68616648,94390.0,94389.0,0.01808529]
[1745964543336,0.68616648,94390.0,94389.0,1.01813303]
[1745964544039,0.3608,94418.0,94395.0,1.00004774]
[1745964544239,0.0415,94415.0,94413.0,1.00004774]
[1745964544439,0.05504339,94415.0,94414.0,0.1949]
[1745964544940,0.28377509,94415.0,94414.0,0.1949]
[1745964545146,0.28377509,94415.0,94414.0,0.3149]
[1745964545525,0.29277509,94415.0,94414.0,0.3149]
[1745964545825,0.30177509,94415.0,94414.0,0.3149]
[1745964546225,0.29977509,94415.0,94414.0,0.3159]
[1745964546627,0.29977509,94415.0,94414.0,0.3169]
[1745964548637,0.47537509,94415.0,94414.0,0.3169]
[1745964548833,0.29977509,94415.0,94414.0,0.3169]
[1745964549939,0.29977509,94415.0,94414.0,1.31694774]
[1745964550138,0.25977509,94415.0,94414.0,1.31694774]
[1745964551947,0.25277509,94415.0,94414.0,1.31594774]
[1745964552138,0.25377509,94415.0,94414.0,1.31594774]
[1745964552539,1.0694911,94415.0,94380.0,0.3608]
[1745964552761,0.3608,94385.0,94382.0,0.1755536]
[1745964553041,0.11451455,94384.0,94383.0,0.1917]
[1745964553240,0.12451455,94384.0,94383.0,0.1917]
[1745964553442,0.23046527,94384.0,94383.0,1.18614729]
[1745964553641,0.11595072,94384.0,94383.0,1.18614729]
[1745964553840,0.23092159,94384.0,94383.0,1.18614729]
[1745964554143,0.23092159,94384.0,94383.0,1.30614729]
[1745964555241,0.25492159,94384.0,94383.0,1.30814729]
[1745964556850,0.25492159,94384.0,94383.0,0.3137]
[1745964559346,0.2118944,94363.0,94359.0,0.3608]
[1745964559550,0.3708,94363.0,94348.0,0.11673592]
[1745964559743,0.1816,94362.0,94356.0,1.12381763]
[1745964559945,0.32755072,94362.0,94356.0,1.12381763]
[1745964560141,0.30992334,94361.0,94356.0,1.24381763]
[1745964560335,0.33992334,94361.0,94356.0,0.3091]
[1745964560550,0.52152334,94361.0,94357.0,0.93471763]
[1745964560753,0.10597823,94360.0,94357.0,0.93471763]
[1745964561046,0.10597823,94360.0,94358.0,0.1925]
[1745964561047,0.11597703,94359.0,94358.0,0.1925]
[1745964561237,0.33317703,94359.0,94358.0,0.1925]
[1745964561641,0.24195582,94359.0,94358.0,0.1925]
[1745964562237,0.24195582,94359.0,94358.0,0.3125]
[1745964562443,0.24395582,94359.0,94358.0,0.3125]
[1745964562637,0.24395582,94359.0,94358.0,1.24721763]
[1745964566341,0.24395582,94359.0,94358.0,0.12]
[1745964567766,0.60475582,94359.0,94358.0,0.12]
[1745964568554,0.60475582,94359.0,94358.0,1.05471763]
[1745964573649,0.13797703,94359.0,94358.0,1.05471763]
[1745964574059,0.49877703,94359.0,94358.0,1.05471763]
[1745964574955,0.24395582,94359.0,94358.0,1.05471763]
[1745964575148,0.60475582,94359.0,94358.0,1.05471763]
[1745964577053,0.49877703,94359.0,94358.0,1.05471763]
[1745964577250,0.00808817,94368.0,94360.0,0.93471763]
[1745964577445,0.00808817,94368.0,94366.0,0.93471763]
[1745964577651,0.13382057,94370.0,94367.0,1.50091763]
[1745964577957,0.13382057,94370.0,94369.0,0.93471763]
[1745964579258,0.13482057,94370.0,94369.0,1.05471763]
[1745964579559,0.430755,94370.0,94340.0,0.3608]
[1745964579750,0.1861,94369.0,94368.0,0.1933]
[1745964580154,0.1209116,94369.0,94368.0,1.24801763]
[1745964580551,0.002,94370.0,94368.0,1.24801763]
[1745964580753,0.002,94370.0,94369.0,0.93471763]
[1745964581051,0.001,94370.0,94369.0,0.93471763]
[1745964581250,0.001,94370.0,94369.0,1.24801763]
[1745964581450,0.13382057,94383.0,94369.0,1.35398562]
[1745964581656,0.13382057,94383.0,94379.0,0.93471763]
[1745964582152,0.13382057,94383.0,94379.0,1.05471763]
[1745964583461,0.0025,94380.0,94379.0,1.05471763]
[1745964583649,0.0035,94380.0,94379.0,1.05471763]
[1745964583856,0.0035,94380.0,94379.0,0.02045753]
[1745964583857,0.74851706,94380.0,94379.0,0.02045753]
[1745964584056,1.06530817,94380.0,94379.0,0.02045753]
[1745964584258,1.06630817,94380.0,94379.0,0.02245753]
[1745964584859,1.06530817,94380.0,94379.0,0.02145753]
[1745964585158,0.96035216,94380.0,94379.0,0.02145753]
[1745964585469,0.96035216,94380.0,94379.0,0.02045753]
[1745964586353,0.95935216,94380.0,94379.0,0.02045753]
[1745964586549,0.96035216,94380.0,94379.0,0.02045753]
[1745964587557,0.59955216,94380.0,94379.0,0.02045753]
[1745964587954,1.28047307,94380.0,94325.0,0.00106016]
[1745964588150,1.28047307,94380.0,94328.0,0.93471763]
[1745964588151,0.12587773,94337.0,94328.0,0.93471763]
[1745964588358,0.12587773,94337.0,94325.0,0.00106016]
[1745964588359,0.44662,94336.0,94325.0,0.00106016]
[1745964588560,0.31902945,94336.0,94325.0,0.00106016]
[1745964588864,0.12012945,94336.0,94335.0,1.3111174]
[1745964589364,0.3685861,94336.0,94327.0,0.1215902]
[1745964589551,0.3608,94333.0,94327.0,0.1215902]
[1745964589960,0.3608,94333.0,94332.0,0.9503174]
[1745964590153,0.3608,94333.0,94332.0,1.0703174]
[1745964590349,0.48287325,94333.0,94332.0,1.0703174]
[1745964590554,0.48287325,94333.0,94332.0,0.12]
[1745964590751,0.30284125,94333.0,94332.0,0.12]
[1745964590955,0.20483325,94333.0,94332.0,1.0703174]
[1745964591155,0.13007325,94333.0,94332.0,1.0703174]
[1745964591364,0.13907325,94333.0,94332.0,1.0703174]
[1745964591570,0.24508125,94333.0,94332.0,0.12]
[1745964591864,0.24508125,94333.0,94332.0,1.0703174]
[1745964592054,0.13907325,94333.0,94332.0,1.4311174]
[1745964592255,0.49987325,94333.0,94332.0,1.0703174]
[1745964592456,0.49187325,94333.0,94332.0,1.0703174]
[1745964592661,0.14007325,94333.0,94332.0,1.4311174]
[1745964602963,0.00811869,94342.0,94335.0,0.9503174]
[1745964603270,0.00783754,94350.0,94341.0,1.3111174]
[1745964603566,0.13421718,94356.0,94349.0,0.9503174]
[1745964603765,0.1953,94355.0,94350.0,0.1843]
[1745964603958,0.50896371,94355.0,94354.0,0.01559977]
[1745964604270,0.50896371,94355.0,94354.0,1.0703174]
[1745964604771,0.87805603,94355.0,94354.0,1.0703174]
[1745964604959,0.87905603,94355.0,94354.0,1.0703174]
[1745964605866,0.88005603,94355.0,94354.0,1.0773174]
[1745964606459,0.88818381,94355.0,94354.0,1.0773174]
[1745964607059,0.52738381,94355.0,94354.0,1.0873174]
[1745964607270,0.88818381,94355.0,94354.0,1.0873174]
[1745964607959,0.88818381,94355.0,94354.0,0.137]
[1745964610163,0.52738381,94355.0,94354.0,0.137]
[1745964610366,0.88818381,94355.0,94354.0,0.137]
[1745964611369,0.69438381,94355.0,94354.0,0.137]
[1745964611757,0.33358381,94355.0,94354.0,0.137]
[1745964611963,0.69438381,94355.0,94354.0,0.137]
[1745964612657,0.33358381,94355.0,94354.0,0.137]
[1745964613265,0.33358381,94355.0,94335.0,0.3608]
[1745964613468,0.3608,94349.0,94342.0,0.93471763]
[1745964613668,0.3823,94348.0,94343.0,0.3627]
[1745964613966,0.50064229,94348.0,94343.0,0.3627]
[1745964614160,0.50064229,94348.0,94343.0,0.4827]
[1745964615369,0.50364229,94348.0,94343.0,0.4827]
[1745964616459,0.50364229,94348.0,94345.0,0.93471763]
[1745964616665,0.50364229,94348.0,94346.0,0.3771]
[1745964617170,0.50364229,94348.0,94346.0,0.4971]
[1745964617471,0.50164229,94348.0,94346.0,0.4971]
[1745964617770,0.50264229,94348.0,94346.0,0.4971]
[1745964618672,0.31064229,94348.0,94347.0,0.9503174]
[1745964619175,0.31064229,94348.0,94347.0,1.4489174]
[1745964620076,0.30964229,94348.0,94347.0,1.4489174]
[1745964620264,0.31064229,94348.0,94347.0,1.4489174]
[1745964620664,0.31064229,94348.0,94347.0,1.4509174]
[1745964630585,0.002,94348.0,94347.0,1.6628266]
[1745964630786,0.002,94348.0,94347.0,1.4509174]
[1745964631268,0.002,94348.0,94347.0,1.6628266]
[1745964632171,1.15799475,94348.0,94347.0,0.04424137]
[1745964632378,0.2119106,94347.0,94331.0,0.1982]
[1745964632575,0.3608,94337.0,94332.0,0.1983]
[1745964632880,0.50370471,94336.0,94333.0,0.1982]
[1745964633369,0.50370471,94336.0,94334.0,0.1983]
[1745964633770,0.50370471,94336.0,94335.0,0.183]
[1745964634172,0.50370471,94336.0,94335.0,0.303]
[1745964634479,0.51270471,94336.0,94335.0,0.303]
[1745964634879,0.52270471,94336.0,94335.0,0.303]
[1745964635296,0.33940471,94336.0,94335.0,1.23771763]
[1745964636180,0.33040471,94336.0,94335.0,1.23771763]
[1745964636374,0.34040471,94336.0,94335.0,1.23771763]
[1745964638081,0.47513087,94336.0,94335.0,1.23771763]
[1745964638280,0.47513087,94336.0,94335.0,1.2533174]
[1745964638970,0.37358509,94345.0,94337.0,0.93471763]
[1745964639171,0.37358509,94345.0,94338.0,0.1945]
[1745964639172,0.2119168,94344.0,94338.0,0.1945]
[1745964639371,0.11834837,94339.0,94338.0,0.1945]
[1745964639571,0.224353,94344.0,94338.0,0.1945]
[1745964639772,0.11834837,94343.0,94338.0,0.1945]
[1745964639973,0.22434682,94343.0,94339.0,0.1967]
[1745964640192,0.11108421,94344.0,94339.0,0.1967]
[1745964640380,0.11108421,94342.0,94339.0,0.1967]
[1745964640582,0.21708266,94342.0,94340.0,0.1833]
[1745964640774,0.11108421,94344.0,94340.0,0.1833]
[1745964640979,0.16167139,94345.0,94341.0,0.1967]
[1745964640980,0.02,94343.0,94341.0,0.1967]
[1745964641174,0.11533961,94343.0,94342.0,0.1833]
[1745964641379,0.22133806,94343.0,94342.0,0.1833]
[1745964641587,0.2119055,94349.0,94342.0,0.38]
[1745964641785,0.22133637,94343.0,94342.0,0.38]
[1745964642088,0.11533961,94348.0,94342.0,0.38]
[1745964642386,0.22334009,94343.0,94342.0,0.38]
[1745964642586,0.11734333,94343.0,94342.0,0.38]
[1745964642887,0.10599395,94343.0,94342.0,0.38]
[1745964643085,1.13013328,94343.0,94315.0,0.3608]
[1745964643275,0.12587773,94325.0,94315.0,1.29551763]
[1745964643478,0.4455,94324.0,94316.0,0.1932]
[1745964643676,0.56376322,94324.0,94316.0,0.1932]
[1745964643874,0.77572502,94324.0,94317.0,0.1825]
[1745964644092,0.10601193,94323.0,94317.0,0.1825]
[1745964644296,0.0676,94322.0,94315.0,0.3658]
[1745964644589,0.2119788,94316.0,94315.0,0.005]
[1745964644783,0.3719788,94316.0,94315.0,0.005]
[1745964644983,0.59137837,94316.0,94315.0,0.005]
[1745964645190,0.62939957,94316.0,94304.0,0.3608]
[1745964645388,0.2119872,94313.0,94304.0,0.3608]
[1745964645588,0.3779,94312.0,94304.0,0.3608]
[1745964645790,0.49358299,94312.0,94304.0,0.3608]
[1745964645984,0.10603329,94311.0,94304.0,0.3608]
[1745964646185,0.0676,94310.0,94309.0,0.01559977]
[1745964646380,0.37791643,94310.0,94309.0,0.93471763]
[1745964646577,0.37791643,94310.0,94309.0,0.9503174]
[1745964646783,0.48395028,94310.0,94309.0,0.9503174]
[1745964647179,0.11621643,94310.0,94309.0,1.0703174]
[1745964647690,0.001,94310.0,94309.0,1.0703174]
[1745964647878,0.12247118,94310.0,94309.0,1.0703174]
[1745964648292,0.2119503,94329.0,94309.0,1.0703174]
[1745964648293,0.3608,94323.0,94309.0,1.0703174]
[1745964648491,0.0676,94325.0,94323.0,0.93471763]
[1745964648683,0.1941,94324.0,94323.0,0.9503174]
[1745964648877,0.31044912,94324.0,94323.0,0.9503174]
[1745964649085,0.37804912,94324.0,94323.0,1.0703174]
[1745964649689,0.37804912,94324.0,94305.0,0.0530004]
[1745964649690,0.0529908,94323.0,94292.0,0.00159079]
[1745964649890,0.2119745,94318.0,94296.0,0.1957]
[1745964650091,0.3608,94316.0,94296.0,0.1957]
[1745964650303,0.5967828,94315.0,94296.0,0.1957]
[1745964650593,0.66110221,94315.0,94296.0,0.1957]
[1745964650794,0.10603329,94314.0,94305.0,0.01559977]
[1745964650994,0.10603329,94314.0,94308.0,0.01559977]
[1745964651190,0.30816576,94313.0,94307.0,0.93471763]
[1745964651492,0.0676,94312.0,94308.0,0.01559977]
[1745964651884,0.30816576,94311.0,94308.0,0.01559977]
[1745964652080,0.30816576,94311.0,94308.0,0.13559977]
[1745964652490,0.30816576,94311.0,94308.0,0.13759977]
[1745964653291,0.30816576,94311.0,94308.0,0.13659977]
[1745964655796,0.30816576,94311.0,94310.0,0.9503174]
[1745964656398,0.30816576,94311.0,94310.0,0.01559977]
[1745964656792,0.30916576,94311.0,94310.0,0.01559977]
[1745964657090,0.30916576,94311.0,94310.0,0.13659977]
[1745964659391,0.30916576,94311.0,94310.0,0.49739977]
[1745964659593,0.30916576,94311.0,94310.0,1.4321174]
[1745964659594,0.12226576,94311.0,94310.0,1.4321174]
[1745964659891,0.01806,94320.0,94312.0,0.2119869]
[1745964660094,0.01806,94320.0,94317.0,0.9503174]
[1745964660292,0.0676,94327.0,94319.0,1.3111174]
[1745964660488,0.0676,94327.0,94326.0,0.9503174]
[1745964660892,0.18225359,94327.0,94326.0,0.9503174]
[1745964661090,0.18225359,94327.0,94326.0,1.0703174]
[1745964661285,0.14272031,94336.0,94328.0,0.01559977]
[1745964661492,0.0676,94335.0,94333.0,0.3608]
[1745964661694,0.0676,94335.0,94334.0,0.3928]
[1745964661897,0.17940838,94335.0,94334.0,0.3928]
[1745964662193,0.28542312,94335.0,94334.0,0.3928]
[1745964662390,0.21782312,94335.0,94334.0,0.3928]
[1745964662991,0.21882312,94335.0,94334.0,0.4038]
[1745964663390,0.0015,94345.0,94334.0,1.3541174]
[1745964663590,0.0015,94345.0,94344.0,1.3111174]
[1745964663985,0.11831974,94345.0,94344.0,1.3111174]
[1745964664189,0.12587773,94354.0,94347.0,0.9503174]
[1745964664386,0.27587773,94354.0,94353.0,0.3608]
[1745964664800,0.34980714,94354.0,94353.0,0.3608]
[1745964665792,0.35080714,94354.0,94353.0,0.3698]
[1745964666097,0.22592941,94354.0,94353.0,0.3778]
[1745964667691,0.22592941,94354.0,94353.0,0.39339977]
[1745964668287,0.14271773,94363.0,94353.0,0.39339977]
[1745964668288,0.7752,94385.0,94362.0,0.9503174]
[1745964668502,0.7752,94385.0,94353.0,0.483784]
[1745964668503,0.1985,94379.0,94371.0,0.3608]
[1745964668685,0.1985,94379.0,94372.0,0.3917]
[1745964668686,0.2385,94379.0,94372.0,0.3917]
[1745964668889,0.22840484,94378.0,94374.0,0.3608]
[1745964669089,0.25840484,94378.0,94375.0,0.1987]
[1745964669295,0.25840484,94378.0,94377.0,0.01559977]
[1745964669498,0.24312409,94378.0,94377.0,0.9503174]
[1745964670387,0.12587773,94387.0,94378.0,0.9503174]
[1745964670587,0.38587773,94387.0,94379.0,0.1905]
[1745964670793,0.11320815,94384.0,94379.0,0.1905]
[1745964670998,0.15320815,94384.0,94380.0,0.3742]
[1745964671199,0.04,94384.0,94380.0,0.3742]
[1745964671500,0.22371425,94383.0,94380.0,0.3742]
[1745964671801,0.26371425,94383.0,94382.0,0.3608]
[1745964672815,0.03,94383.0,94382.0,0.3608]
[1745964673009,0.24746518,94383.0,94382.0,0.3628]
[1745964674501,0.12587773,94410.0,94382.0,0.3628]
[1745964674704,0.0794,94397.0,94393.0,0.3608]
[1745964674998,0.0794,94397.0,94394.0,0.59349977]
[1745964674999,0.22213813,94397.0,94394.0,0.59349977]
[1745964675305,0.10595184,94396.0,94394.0,0.5779]
[1745964675496,0.00796139,94410.0,94395.0,0.01559977]
[1745964675497,0.13383912,94410.0,94395.0,0.01559977]
[1745964675705,0.38892873,94410.0,94408.0,0.3608]
[1745964675891,0.263051,94410.0,94409.0,0.5779]
[1745964676207,0.37517462,94410.0,94409.0,0.5779]
[1745964676500,0.12587773,94418.0,94409.0,0.5779]
[1745964676501,0.5780664,94452.0,94415.0,0.01559977]
[1745964676700,0.0794,94422.0,94419.0,0.3608]
[1745964676901,0.1694,94422.0,94420.0,0.3708]
[1745964677097,0.11212362,94421.0,94420.0,0.3708]
[1745964677296,0.20212362,94421.0,94420.0,0.3708]
[1745964677501,0.30804516,94421.0,94420.0,0.38639977]
[1745964677700,0.21804516,94421.0,94420.0,0.38639977]
[1745964678095,0.06744,94428.0,94421.0,0.01559977]
[1745964678293,0.23744,94428.0,94427.0,0.3608]
[1745964678498,0.34864761,94428.0,94427.0,0.3608]
[1745964678692,0.28120761,94428.0,94427.0,0.3608]
[1745964678894,0.38710896,94428.0,94427.0,0.3608]
[1745964679193,0.21710896,94428.0,94427.0,0.37639977]
[1745964679507,0.21810896,94428.0,94427.0,0.37639977]
[1745964680804,0.60400896,94428.0,94411.0,0.3608]
[1745964681106,0.2117633,94412.0,94411.0,0.35196]
[1745964681296,0.06744,94412.0,94411.0,0.34241578]
[1745964681494,0.0529442,94406.0,94398.0,0.185]
[1745964681697,0.211779,94405.0,94404.0,0.1867]
[1745964681896,0.2117902,94400.0,94399.0,0.1798]
[1745964682098,0.0529489,94398.0,94370.0,0.4114]
[1745964682297,0.0529489,94398.0,94362.0,0.36238961]
[1745964682298,0.2118684,94366.0,94362.0,0.00158961]
[1745964682505,0.06744,94365.0,94363.0,0.11849244]
[1745964682697,0.06744,94364.0,94363.0,0.11849244]
[1745964682897,0.06744,94364.0,94363.0,0.11690283]
[1745964683097,0.17956274,94364.0,94363.0,0.11690283]
[1745964683298,0.28553535,94364.0,94363.0,0.11690283]
[1745964684599,0.29053535,94364.0,94363.0,0.11690283]
[1745964685502,0.29153535,94364.0,94363.0,0.11690283]
[1745964686895,0.06744,94364.0,94363.0,0.11690283]
[1745964687098,0.29241442,94364.0,94363.0,0.11690283]
[1745964688098,0.07528386,94368.0,94363.0,0.11690283]
[1745964688301,0.06744,94368.0,94367.0,0.3608]
[1745964688498,0.11190915,94369.0,94367.0,1.3111174]
[1745964688699,0.07550968,94369.0,94368.0,0.1979]
[1745964689006,0.11190915,94369.0,94368.0,1.1482174]
[1745964689204,0.06744,94376.0,94368.0,0.67386799]
[1745964689408,0.01509815,94390.0,94387.0,0.01559977]
[1745964689609,0.11287684,94386.0,94385.0,0.93471763]
[1745964689902,0.01,94386.0,94385.0,0.3608]
[1745964690103,0.01,94386.0,94385.0,0.37639977]
[1745964690302,0.19031684,94386.0,94385.0,1.3111174]
[1745964690609,0.01517657,94390.0,94385.0,1.3111174]
[1745964690906,0.06744,94397.0,94389.0,1.3111174]
[1745964691108,0.01,94397.0,94396.0,1.29551763]
[1745964691302,0.07744,94397.0,94396.0,1.3111174]
[1745964691498,0.20388018,94397.0,94396.0,1.3111174]
[1745964691903,0.30981631,94397.0,94396.0,1.3111174]
[1745964692802,0.30981631,94397.0,94396.0,1.3141174]
[1745964693294,0.30981631,94397.0,94396.0,1.3191174]
[1745964694110,0.30981631,94397.0,94396.0,1.3201174]
[1745964694314,0.24237631,94397.0,94396.0,1.3201174]
[1745964694511,0.31017631,94397.0,94396.0,1.3201174]
[1745964695907,0.13644018,94397.0,94396.0,1.3201174]
[1745964696115,0.12644018,94397.0,94396.0,1.3201174]
[1745964696407,0.12644018,94397.0,94396.0,1.4401174]
[1745964697606,0.2132566,94415.0,94396.0,1.4401174]
[1745964697607,0.0678,94405.0,94399.0,0.9503174]